[Event "Live Chess"]
[Site "Chess.com"]
[Date "2023.05.21"]
[Round "-"]
[White "RamsayFlayer"]
[Black "GwaryTek"]
[Result "1-0"]
[WhiteElo "1972"]
[BlackElo "2042"]
[TimeControl "300"]
[EndTime "2:38:57 PDT"]
[Termination "RamsayFlayer won on time"]

1. e4 {[%clk 0:04:58.1]} 1... Nf6 {[%clk 0:04:57.5]} 2. e5 {[%clk 0:04:57.2]}
2... Nd5 {[%clk 0:04:56.1]} 3. c4 {[%clk 0:04:56.7]} 3... Nb6 {[%clk 0:04:54.3]}
4. d4 {[%clk 0:04:56.4]} 4... d6 {[%clk 0:04:52.8]} 5. f4 {[%clk 0:04:56.1]}
5... dxe5 {[%clk 0:04:51.1]} 6. fxe5 {[%clk 0:04:55.8]} 6... c5 {[%clk
0:04:50.4]} 7. dxc5 {[%clk 0:04:49.7]} 7... Qxd1+ {[%clk 0:04:48.1]} 8. Kxd1
{[%clk 0:04:49.3]} 8... N6d7 {[%clk 0:04:46.2]} 9. e6 {[%clk 0:04:42.1]} 9...
Nxc5 {[%clk 0:04:30.7]} 10. exf7+ {[%clk 0:04:40.7]} 10... Kxf7 {[%clk
0:04:30.6]} 11. Nh3 {[%clk 0:04:28.9]} 11... Nc6 {[%clk 0:04:18.5]} 12. Ng5+
{[%clk 0:04:25.4]} 12... Kg6 {[%clk 0:04:07.7]} 13. Be3 {[%clk 0:04:19.8]} 13...
Bg4+ {[%clk 0:04:04.3]} 14. Be2 {[%clk 0:04:16.2]} 14... Rd8+ {[%clk 0:03:45.9]}
15. Nd2 {[%clk 0:04:14.4]} 15... Bxe2+ {[%clk 0:03:38.3]} 16. Kxe2 {[%clk
0:04:14.3]} 16... Nd4+ {[%clk 0:03:34.3]} 17. Bxd4 {[%clk 0:03:59]} 17... Rxd4
{[%clk 0:03:34.2]} 18. Ngf3 {[%clk 0:03:57.4]} 18... Rd8 {[%clk 0:03:21.2]} 19.
Rhe1 {[%clk 0:03:47]} 19... Nd3 {[%clk 0:03:12.7]} 20. Rf1 {[%clk 0:03:35.8]}
20... e5 {[%clk 0:03:09.5]} 21. Ne4 {[%clk 0:03:24.3]} 21... Nf4+ {[%clk
0:02:36.4]} 22. Kf2 {[%clk 0:03:09.9]} 22... Bd6 {[%clk 0:02:28.2]} 23. Nxd6
{[%clk 0:03:00.4]} 23... Nd3+ {[%clk 0:02:19.9]} 24. Ke3 {[%clk 0:02:56.2]}
24... Rxd6 {[%clk 0:02:19.8]} 25. Rad1 {[%clk 0:02:51.2]} 25... Rhd8 {[%clk
0:02:18.1]} 26. b3 {[%clk 0:02:33.3]} 26... h6 {[%clk 0:02:05]} 27. Nh4+ {[%clk
0:02:26]} 27... Kh7 {[%clk 0:02:02.2]} 28. Nf5 {[%clk 0:02:24.6]} 28... R6d7
{[%clk 0:01:55.5]} 29. Rd2 {[%clk 0:02:15.9]} 29... Nb4 {[%clk 0:01:41.3]} 30.
Rxd7 {[%clk 0:02:11.1]} 30... Rxd7 {[%clk 0:01:38.3]} 31. Ke4 {[%clk 0:01:53]}
31... Nc6 {[%clk 0:01:02.7]} 32. Rf3 {[%clk 0:01:42.8]} 32... Rf7 {[%clk
0:00:27]} 33. Nd6 {[%clk 0:01:30]} 33... Rd7 {[%clk 0:00:21.1]} 34. Nb5 {[%clk
0:01:14.6]} 34... a6 {[%clk 0:00:18.9]} 35. Nc3 {[%clk 0:01:12.3]} 35... Rd4+
{[%clk 0:00:17.2]} 36. Ke3 {[%clk 0:01:11.3]} 36... Rd7 {[%clk 0:00:16.2]} 37.
Nd5 {[%clk 0:01:08.7]} 37... b5 {[%clk 0:00:13.7]} 38. Ke4 {[%clk 0:01:04]}
38... bxc4 {[%clk 0:00:12.5]} 39. bxc4 {[%clk 0:01:03]} 39... Rb7 {[%clk
0:00:11.8]} 40. Rb3 {[%clk 0:01:00.9]} 40... Rf7 {[%clk 0:00:09.8]} 41. Rb6
{[%clk 0:00:52.2]} 41... Nd4 {[%clk 0:00:05.1]} 42. Kxe5 {[%clk 0:00:49.7]}
42... Ne2 {[%clk 0:00:02.6]} 43. Rxa6 {[%clk 0:00:40.7]} 1-0

[Event "Live Chess"]
[Site "Chess.com"]
[Date "2023.05.21"]
[Round "-"]
[White "Richardallis"]
[Black "chessfiction"]
[Result "0-1"]
[WhiteElo "1877"]
[BlackElo "2337"]
[TimeControl "300"]
[EndTime "2:39:06 PDT"]
[Termination "chessfiction won by resignation"]

1. d4 {[%clk 0:04:54.1]} 1... d5 {[%clk 0:04:59.4]} 2. Nf3 {[%clk 0:04:53.4]}
2... Nc6 {[%clk 0:04:58.3]} 3. c4 {[%clk 0:04:52.7]} 3... Bg4 {[%clk 0:04:57.6]}
4. cxd5 {[%clk 0:04:49.4]} 4... Qxd5 {[%clk 0:04:57.5]} 5. Nc3 {[%clk
0:04:48.2]} 5... Qh5 {[%clk 0:04:56.2]} 6. Bf4 {[%clk 0:04:45.9]} 6... O-O-O
{[%clk 0:04:55.2]} 7. Qa4 {[%clk 0:04:39.9]} 7... Bxf3 {[%clk 0:04:40.9]} 8.
exf3 {[%clk 0:04:22.1]} 8... Rxd4 {[%clk 0:04:29.9]} 9. Qxd4 {[%clk 0:04:20]}
9... Nxd4 {[%clk 0:04:28.7]} 10. Bd3 {[%clk 0:04:19.1]} 10... e5 {[%clk
0:04:25]} 11. Bxe5 {[%clk 0:04:17]} 11... Qxe5+ {[%clk 0:04:23.8]} 0-1

[Event "Live Chess"]
[Site "Chess.com"]
[Date "2023.05.21"]
[Round "-"]
[White "RockTroll"]
[Black "MJMykh"]
[Result "1-0"]
[WhiteElo "2213"]
[BlackElo "1184"]
[TimeControl "300"]
[EndTime "2:39:18 PDT"]
[Termination "RockTroll won by checkmate"]

1. Nf3 {[%clk 0:04:58.2]} 1... Nc6 {[%clk 0:04:57.7]} 2. g3 {[%clk 0:04:57.6]}
2... e5 {[%clk 0:04:56.7]} 3. d3 {[%clk 0:04:56.6]} 3... Nf6 {[%clk 0:04:56]} 4.
Bg2 {[%clk 0:04:56.3]} 4... Bc5 {[%clk 0:04:54.7]} 5. O-O {[%clk 0:04:55.3]}
5... Ng4 {[%clk 0:04:53.1]} 6. a3 {[%clk 0:04:54.3]} 6... Nxf2 {[%clk
0:04:52.4]} 7. Rxf2 {[%clk 0:04:53.1]} 7... Bxf2+ {[%clk 0:04:51.6]} 8. Kxf2
{[%clk 0:04:53]} 8... O-O {[%clk 0:04:51.1]} 9. Kg1 {[%clk 0:04:52.1]} 9... h6
{[%clk 0:04:51]} 10. e4 {[%clk 0:04:49.1]} 10... d6 {[%clk 0:04:50.1]} 11. Nc3
{[%clk 0:04:48.2]} 11... Bg4 {[%clk 0:04:49.3]} 12. Be3 {[%clk 0:04:47.3]} 12...
Bxf3 {[%clk 0:04:48.1]} 13. Qxf3 {[%clk 0:04:44.9]} 13... Qe7 {[%clk 0:04:45]}
14. Nd5 {[%clk 0:04:43.9]} 14... Qd8 {[%clk 0:04:41.3]} 15. Rf1 {[%clk
0:04:39.6]} 15... Ne7 {[%clk 0:04:38.8]} 16. Nxe7+ {[%clk 0:04:26.3]} 16... Qxe7
{[%clk 0:04:37.4]} 17. Qg4 {[%clk 0:04:25.1]} 17... Kh7 {[%clk 0:04:33.2]} 18.
Qf5+ {[%clk 0:04:22]} 18... Kg8 {[%clk 0:04:31]} 19. Bf3 {[%clk 0:04:18.6]}
19... g6 {[%clk 0:04:25.9]} 20. Qh3 {[%clk 0:04:16.4]} 20... h5 {[%clk
0:04:24.1]} 21. Bxh5 {[%clk 0:04:13.8]} 21... gxh5 {[%clk 0:04:22.9]} 22. Qxh5
{[%clk 0:04:13.4]} 22... Kg7 {[%clk 0:04:17.6]} 23. Bh6+ {[%clk 0:04:08.5]}
23... Kg8 {[%clk 0:04:14.7]} 24. Rf5 {[%clk 0:04:05.8]} 24... f6 {[%clk
0:04:04.2]} 25. Qg6+ {[%clk 0:04:04.2]} 25... Kh8 {[%clk 0:04:02.2]} 26. Bxf8
{[%clk 0:04:02.7]} 26... Qxf8 {[%clk 0:04:00.3]} 27. Rh5+ {[%clk 0:04:02.3]}
27... Qh6 {[%clk 0:03:58]} 28. Rxh6# {[%clk 0:04:01.7]} 1-0

[Event "Live Chess"]
[Site "Chess.com"]
[Date "2023.05.21"]
[Round "-"]
[White "Brooms1989"]
[Black "Chris_pea"]
[Result "1-0"]
[WhiteElo "1109"]
[BlackElo "608"]
[TimeControl "300"]
[EndTime "2:39:30 PDT"]
[Termination "Brooms1989 won by resignation"]

1. e4 {[%clk 0:04:56.6]} 1... e5 {[%clk 0:04:56.2]} 2. Nc3 {[%clk 0:04:55.4]}
2... Nf6 {[%clk 0:04:54.9]} 3. f4 {[%clk 0:04:54.5]} 3... d5 {[%clk 0:04:49.8]}
4. fxe5 {[%clk 0:04:52.4]} 4... Nxe4 {[%clk 0:04:44]} 5. Nxe4 {[%clk 0:04:51.5]}
5... dxe4 {[%clk 0:04:42.6]} 6. d4 {[%clk 0:04:48.3]} 6... Qh4+ {[%clk 0:04:32]}
7. g3 {[%clk 0:04:44.9]} 7... Qd8 {[%clk 0:04:19.1]} 8. Bc4 {[%clk 0:04:38.4]}
8... Bb4+ {[%clk 0:04:09.1]} 9. c3 {[%clk 0:04:33.9]} 9... Be7 {[%clk
0:04:05.8]} 10. Ne2 {[%clk 0:04:20.4]} 10... O-O {[%clk 0:04:03.3]} 11. O-O
{[%clk 0:04:19.4]} 11... Nc6 {[%clk 0:03:58.4]} 12. Nf4 {[%clk 0:04:09.9]} 12...
Bh3 {[%clk 0:03:47.3]} 13. Rf2 {[%clk 0:04:03.3]} 13... Qd7 {[%clk 0:03:29.9]}
14. Nxh3 {[%clk 0:03:44]} 14... Qxh3 {[%clk 0:03:26.4]} 15. Bd5 {[%clk 0:03:33]}
15... Na5 {[%clk 0:02:53.1]} 16. Bxe4 {[%clk 0:03:26.7]} 16... Nc4 {[%clk
0:02:50.8]} 17. Bd5 {[%clk 0:03:11.7]} 17... Nxe5 {[%clk 0:02:30.1]} 18. dxe5
{[%clk 0:03:02.3]} 18... Bc5 {[%clk 0:02:28.1]} 19. Qe2 {[%clk 0:02:06.4]} 19...
c6 {[%clk 0:02:05.8]} 20. Bg2 {[%clk 0:02:01.2]} 20... Qf5 {[%clk 0:01:52.3]}
21. Be3 {[%clk 0:01:55.5]} 21... Qxe5 {[%clk 0:01:47.5]} 22. Bxc5 {[%clk
0:01:51.3]} 22... Qxc5 {[%clk 0:01:45.7]} 23. Rf1 {[%clk 0:01:47.7]} 23... Rae8
{[%clk 0:01:43.4]} 24. Qc2 {[%clk 0:01:18.9]} 24... Re7 {[%clk 0:01:29]} 25. Kh1
{[%clk 0:01:11.4]} 25... Rfe8 {[%clk 0:01:05]} 26. Qf5 {[%clk 0:00:57.6]} 26...
f6 {[%clk 0:00:55.4]} 27. Qxc5 {[%clk 0:00:53.7]} 1-0

[Event "Live Chess"]
[Site "Chess.com"]
[Date "2023.05.21"]
[Round "-"]
[White "elephantgerrald"]
[Black "Purple1szed"]
[Result "0-1"]
[WhiteElo "688"]
[BlackElo "1823"]
[TimeControl "300"]
[EndTime "2:39:50 PDT"]
[Termination "Purple1szed won by checkmate"]

1. e4 {[%clk 0:04:57.4]} 1... e5 {[%clk 0:04:58.8]} 2. Nf3 {[%clk 0:04:56.2]}
2... Nc6 {[%clk 0:04:58.3]} 3. Bb5 {[%clk 0:04:54.7]} 3... a6 {[%clk 0:04:57.3]}
4. Bxc6 {[%clk 0:04:53.8]} 4... dxc6 {[%clk 0:04:57.2]} 5. Nxe5 {[%clk
0:04:52.8]} 5... Qd4 {[%clk 0:04:56.9]} 6. Nf3 {[%clk 0:04:51.6]} 6... Qxe4+
{[%clk 0:04:56.2]} 7. Qe2 {[%clk 0:04:50.8]} 7... Qxe2+ {[%clk 0:04:55.6]} 8.
Kxe2 {[%clk 0:04:50]} 8... Bg4 {[%clk 0:04:55.3]} 9. Re1 {[%clk 0:04:49.2]} 9...
Be7 {[%clk 0:04:53.3]} 10. h3 {[%clk 0:04:45.1]} 10... Bxf3+ {[%clk 0:04:52.1]}
11. Kxf3 {[%clk 0:04:44.1]} 11... Nf6 {[%clk 0:04:52]} 12. g3 {[%clk 0:04:42.8]}
12... Nd5 {[%clk 0:04:50]} 13. Kg2 {[%clk 0:04:41.6]} 13... O-O {[%clk
0:04:48.9]} 14. Nc3 {[%clk 0:04:40.2]} 14... Nxc3 {[%clk 0:04:47.8]} 15. dxc3
{[%clk 0:04:38.8]} 15... Bd6 {[%clk 0:04:47]} 16. Be3 {[%clk 0:04:35.8]} 16...
Rfe8 {[%clk 0:04:44.8]} 17. Rad1 {[%clk 0:04:32.1]} 17... Rad8 {[%clk
0:04:43.4]} 18. a4 {[%clk 0:04:27.6]} 18... f6 {[%clk 0:04:39.6]} 19. Bf4 {[%clk
0:04:25]} 19... Bxf4 {[%clk 0:04:37.6]} 20. Rxe8+ {[%clk 0:04:20.3]} 20... Rxe8
{[%clk 0:04:37.5]} 21. gxf4 {[%clk 0:04:18.4]} 21... Re2 {[%clk 0:04:29.6]} 22.
Rd8+ {[%clk 0:04:16.1]} 22... Kf7 {[%clk 0:04:28.5]} 23. Rd7+ {[%clk 0:04:15]}
23... Re7 {[%clk 0:04:28.2]} 24. Rxe7+ {[%clk 0:04:13.1]} 24... Kxe7 {[%clk
0:04:28.1]} 25. b4 {[%clk 0:04:11.6]} 25... Ke6 {[%clk 0:04:26.6]} 26. Kf3
{[%clk 0:04:10.7]} 26... Kd5 {[%clk 0:04:24.6]} 27. Ke3 {[%clk 0:04:09.6]} 27...
f5 {[%clk 0:04:21.5]} 28. a5 {[%clk 0:04:07.8]} 28... Kc4 {[%clk 0:04:17.1]} 29.
f3 {[%clk 0:04:02.9]} 29... Kxc3 {[%clk 0:04:15.8]} 30. h4 {[%clk 0:03:58.5]}
30... Kxb4 {[%clk 0:04:09.4]} 31. Kd4 {[%clk 0:03:57.8]} 31... Kxa5 {[%clk
0:04:07.9]} 32. Ke5 {[%clk 0:03:57.2]} 32... Kb4 {[%clk 0:04:07.5]} 33. Kxf5
{[%clk 0:03:56.4]} 33... a5 {[%clk 0:04:07.4]} 34. Ke5 {[%clk 0:03:55.8]} 34...
a4 {[%clk 0:04:07.3]} 35. f5 {[%clk 0:03:53.3]} 35... a3 {[%clk 0:04:07.2]} 36.
f6 {[%clk 0:03:52.7]} 36... gxf6+ {[%clk 0:04:07.1]} 37. Kxf6 {[%clk 0:03:51.8]}
37... a2 {[%clk 0:04:07]} 38. f4 {[%clk 0:03:51.3]} 38... a1=Q+ {[%clk
0:04:06.9]} 39. Ke6 {[%clk 0:03:50]} 39... Qc3 {[%clk 0:04:06.4]} 40. f5 {[%clk
0:03:49]} 40... Qxc2 {[%clk 0:04:06.3]} 41. f6 {[%clk 0:03:48]} 41... Qg6 {[%clk
0:04:06]} 42. Ke7 {[%clk 0:03:46.4]} 42... c5 {[%clk 0:04:05.5]} 43. f7 {[%clk
0:03:44.8]} 43... Qe4+ {[%clk 0:04:02.9]} 44. Kf8 {[%clk 0:03:42.9]} 44... c4
{[%clk 0:04:00.4]} 45. Kg8 {[%clk 0:03:41.8]} 45... Qe6 {[%clk 0:03:59.1]} 46.
Kg7 {[%clk 0:03:39.3]} 46... Qe5+ {[%clk 0:03:55.5]} 47. Kf8 {[%clk 0:03:37.7]}
47... c3 {[%clk 0:03:54.2]} 48. Kg8 {[%clk 0:03:36.5]} 48... c2 {[%clk
0:03:53.4]} 49. f8=Q+ {[%clk 0:03:34.3]} 49... Qc5 {[%clk 0:03:52.9]} 50. Qf4+
{[%clk 0:03:30.4]} 50... Qc4+ {[%clk 0:03:52]} 51. Qxc4+ {[%clk 0:03:21.7]}
51... Kxc4 {[%clk 0:03:51.9]} 52. Kxh7 {[%clk 0:03:20.3]} 52... c1=Q {[%clk
0:03:51.8]} 53. h5 {[%clk 0:03:18.3]} 53... Qg5 {[%clk 0:03:50.7]} 54. h6 {[%clk
0:03:17.2]} 54... Qxh6+ {[%clk 0:03:50]} 55. Kxh6 {[%clk 0:03:15.9]} 55... b5
{[%clk 0:03:49.9]} 56. Kg5 {[%clk 0:03:15.2]} 56... b4 {[%clk 0:03:49.8]} 57.
Kf4 {[%clk 0:03:14.8]} 57... b3 {[%clk 0:03:49.7]} 58. Ke3 {[%clk 0:03:14.4]}
58... b2 {[%clk 0:03:49.6]} 59. Kf4 {[%clk 0:03:13.1]} 59... b1=Q {[%clk
0:03:49.5]} 60. Ke5 {[%clk 0:03:12.6]} 60... Qd3 {[%clk 0:03:49.4]} 61. Kf6
{[%clk 0:03:12]} 61... Qd5 {[%clk 0:03:48.9]} 62. Kg6 {[%clk 0:03:10.6]} 62...
Qf3 {[%clk 0:03:48.1]} 63. Kg5 {[%clk 0:03:09.4]} 63... Kd5 {[%clk 0:03:48]} 64.
Kh4 {[%clk 0:03:07.9]} 64... Qg2 {[%clk 0:03:47.1]} 65. Kh5 {[%clk 0:03:06.5]}
65... Qg3 {[%clk 0:03:47]} 66. Kh6 {[%clk 0:03:05.2]} 66... Qg4 {[%clk
0:03:46.9]} 67. Kh7 {[%clk 0:03:04.3]} 67... Qg5 {[%clk 0:03:46.8]} 68. Kh8
{[%clk 0:03:03.2]} 68... Ke6 {[%clk 0:03:46.7]} 69. Kh7 {[%clk 0:03:01.7]} 69...
Kf7 {[%clk 0:03:46.6]} 70. Kh8 {[%clk 0:03:00.7]} 70... Qg7# {[%clk 0:03:46.5]}
0-1

[Event "Live Chess"]
[Site "Chess.com"]
[Date "2023.05.21"]
[Round "-"]
[White "HoarseyHorsey"]
[Black "ItsNot_Jasper"]
[Result "0-1"]
[WhiteElo "1439"]
[BlackElo "1348"]
[TimeControl "300"]
[EndTime "2:39:56 PDT"]
[Termination "ItsNot_Jasper won by resignation"]

1. d4 {[%clk 0:04:59.2]} 1... Nf6 {[%clk 0:04:58.4]} 2. c4 {[%clk 0:04:58.5]}
2... e6 {[%clk 0:04:57.5]} 3. Nc3 {[%clk 0:04:57.2]} 3... Bb4 {[%clk 0:04:55.4]}
4. e3 {[%clk 0:04:56.2]} 4... c5 {[%clk 0:04:54.2]} 5. Ne2 {[%clk 0:04:54.5]}
5... O-O {[%clk 0:04:50.4]} 6. a3 {[%clk 0:04:43.2]} 6... Bxc3+ {[%clk
0:04:48.2]} 7. bxc3 {[%clk 0:04:43.1]} 7... Qa5 {[%clk 0:04:44.6]} 8. Bd2 {[%clk
0:04:36.3]} 8... d5 {[%clk 0:04:40.2]} 9. cxd5 {[%clk 0:04:26.1]} 9... Nxd5
{[%clk 0:04:40.1]} 10. c4 {[%clk 0:04:23.8]} 10... Qc7 {[%clk 0:04:28.9]} 11.
cxd5 {[%clk 0:04:21.6]} 11... exd5 {[%clk 0:04:28.8]} 12. Bc3 {[%clk 0:04:12.3]}
12... Nc6 {[%clk 0:04:25.7]} 13. Rc1 {[%clk 0:03:57.8]} 13... b6 {[%clk
0:04:16.5]} 14. g3 {[%clk 0:03:53.5]} 14... Re8 {[%clk 0:04:06.6]} 15. Bg2
{[%clk 0:03:52.4]} 15... Bb7 {[%clk 0:04:05.3]} 16. Qd3 {[%clk 0:03:42.5]} 16...
c4 {[%clk 0:04:00.6]} 17. Qf5 {[%clk 0:03:35.1]} 17... Ne7 {[%clk 0:03:48.8]}
18. Qf3 {[%clk 0:03:27.6]} 18... b5 {[%clk 0:03:40.2]} 19. Bb4 {[%clk
0:03:23.4]} 19... Ng6 {[%clk 0:03:38.1]} 20. Nf4 {[%clk 0:03:18.6]} 20... a5
{[%clk 0:03:34]} 21. Bc5 {[%clk 0:03:12.2]} 21... Nf8 {[%clk 0:03:23.9]} 22.
Bxf8 {[%clk 0:03:03.1]} 22... Kxf8 {[%clk 0:03:19.7]} 23. O-O {[%clk 0:03:01.9]}
23... b4 {[%clk 0:03:18.3]} 24. axb4 {[%clk 0:03:00]} 24... axb4 {[%clk
0:03:18.2]} 25. Ra1 {[%clk 0:02:55]} 25... Rxa1 {[%clk 0:02:19.3]} 26. Rxa1
{[%clk 0:02:52.1]} 26... b3 {[%clk 0:02:19.2]} 27. Ra7 {[%clk 0:02:26.7]} 27...
b2 {[%clk 0:02:14.4]} 28. Qd1 {[%clk 0:02:23.5]} 28... c3 {[%clk 0:02:13.2]} 29.
Qc2 {[%clk 0:02:13.9]} 29... Qb6 {[%clk 0:02:06.8]} 30. Rxb7 {[%clk 0:01:53.7]}
30... Qxb7 {[%clk 0:02:04.6]} 31. Bxd5 {[%clk 0:01:51.6]} 31... b1=Q+ {[%clk
0:02:01.2]} 32. Qxb1 {[%clk 0:01:50.6]} 32... Qxb1+ {[%clk 0:02:00.7]} 33. Kg2
{[%clk 0:01:50]} 33... c2 {[%clk 0:01:55.7]} 34. Nd3 {[%clk 0:01:48.1]} 34...
Qd1 {[%clk 0:01:43.8]} 35. Bb3 {[%clk 0:01:43.5]} 35... Qxd3 {[%clk 0:01:41.7]}
0-1

[Event "Live Chess"]
[Site "Chess.com"]
[Date "2023.05.21"]
[Round "-"]
[White "KeithArkell"]
[Black "Rusty_Bridges"]
[Result "1-0"]
[WhiteElo "2511"]
[BlackElo "1514"]
[TimeControl "300"]
[EndTime "2:40:11 PDT"]
[Termination "KeithArkell won on time"]

1. d4 {[%clk 0:04:57.4]} 1... d5 {[%clk 0:04:57.6]} 2. Nf3 {[%clk 0:04:56.6]}
2... e6 {[%clk 0:04:56.2]} 3. c4 {[%clk 0:04:55.8]} 3... Nf6 {[%clk 0:04:54.5]}
4. cxd5 {[%clk 0:04:55.1]} 4... Nxd5 {[%clk 0:04:52.7]} 5. Nc3 {[%clk
0:04:54.3]} 5... c6 {[%clk 0:04:49.8]} 6. Bg5 {[%clk 0:04:53.1]} 6... Be7 {[%clk
0:04:47.9]} 7. Bxe7 {[%clk 0:04:52.2]} 7... Qxe7 {[%clk 0:04:42.8]} 8. e3 {[%clk
0:04:51.4]} 8... Nd7 {[%clk 0:04:40.1]} 9. Bd3 {[%clk 0:04:49.6]} 9... N7f6
{[%clk 0:04:38.3]} 10. O-O {[%clk 0:04:48.4]} 10... b6 {[%clk 0:04:34.3]} 11.
Rc1 {[%clk 0:04:47.5]} 11... Bb7 {[%clk 0:04:32.9]} 12. Nxd5 {[%clk 0:04:46.5]}
12... Nxd5 {[%clk 0:04:30.9]} 13. Ne5 {[%clk 0:04:45.1]} 13... Rc8 {[%clk
0:04:26.1]} 14. Be4 {[%clk 0:04:41.1]} 14... f6 {[%clk 0:04:23.4]} 15. Nd3
{[%clk 0:04:37.9]} 15... O-O {[%clk 0:04:20.9]} 16. a3 {[%clk 0:04:36.3]} 16...
f5 {[%clk 0:04:15.9]} 17. Bf3 {[%clk 0:04:34.8]} 17... Nf6 {[%clk 0:04:10.7]}
18. Ne5 {[%clk 0:04:31.4]} 18... Nd7 {[%clk 0:04:08.3]} 19. Nxd7 {[%clk
0:04:29.3]} 19... Qxd7 {[%clk 0:04:06.9]} 20. b4 {[%clk 0:04:28.4]} 20... f4
{[%clk 0:03:57.8]} 21. Re1 {[%clk 0:04:21.4]} 21... fxe3 {[%clk 0:03:55.7]} 22.
Rxe3 {[%clk 0:04:20.5]} 22... a5 {[%clk 0:03:43.5]} 23. h3 {[%clk 0:04:14.8]}
23... axb4 {[%clk 0:03:41.6]} 24. axb4 {[%clk 0:04:14.7]} 24... Qe7 {[%clk
0:03:34.6]} 25. Qb3 {[%clk 0:04:07.3]} 25... Rf6 {[%clk 0:03:30.9]} 26. Rce1
{[%clk 0:04:05.8]} 26... Re8 {[%clk 0:03:25.7]} 27. b5 {[%clk 0:03:53.7]} 27...
cxb5 {[%clk 0:03:19.7]} 28. Bxb7 {[%clk 0:03:52]} 28... Qxb7 {[%clk 0:03:18.4]}
29. Qxb5 {[%clk 0:03:46.6]} 29... Ref8 {[%clk 0:02:59.3]} 30. R1e2 {[%clk
0:03:43.4]} 30... Qc7 {[%clk 0:02:51.7]} 31. g3 {[%clk 0:02:54.9]} 31... Qd6
{[%clk 0:02:32.2]} 32. Qe5 {[%clk 0:02:49.6]} 32... Qb4 {[%clk 0:02:12.2]} 33.
Kg2 {[%clk 0:02:44.6]} 33... b5 {[%clk 0:01:58.3]} 34. Rc2 {[%clk 0:02:37.8]}
34... Kh8 {[%clk 0:01:47.8]} 35. Qc5 {[%clk 0:02:31.7]} 35... Qa4 {[%clk
0:01:29.4]} 36. Rxe6 {[%clk 0:02:18.8]} 36... Qxc2 {[%clk 0:01:15.7]} 37. Qxc2
{[%clk 0:02:05.6]} 37... Rxe6 {[%clk 0:01:13.9]} 38. d5 {[%clk 0:01:55.5]} 38...
Rd6 {[%clk 0:01:11.8]} 39. Qc5 {[%clk 0:01:54.7]} 39... Rfd8 {[%clk 0:01:10.2]}
40. Qxb5 {[%clk 0:01:53.9]} 40... Rxd5 {[%clk 0:01:09]} 41. Qb6 {[%clk
0:01:53.1]} 41... Rf8 {[%clk 0:01:02.8]} 42. f4 {[%clk 0:01:51.8]} 42... Rd2+
{[%clk 0:00:58.3]} 43. Kf3 {[%clk 0:01:51]} 43... Rfd8 {[%clk 0:00:56.7]} 44.
Kg4 {[%clk 0:01:48.9]} 44... h6 {[%clk 0:00:50.4]} 45. h4 {[%clk 0:01:47.4]}
45... Kh7 {[%clk 0:00:47.9]} 46. h5 {[%clk 0:01:46.6]} 46... R2d6 {[%clk
0:00:43.2]} 47. Qb1+ {[%clk 0:01:45]} 47... Kh8 {[%clk 0:00:41.5]} 48. Qe4
{[%clk 0:01:44.6]} 48... Rd4 {[%clk 0:00:39.6]} 49. Qe7 {[%clk 0:01:43.4]} 49...
R4d7 {[%clk 0:00:38.3]} 50. Qe6 {[%clk 0:01:42.4]} 50... Rd6 {[%clk 0:00:37.5]}
51. Qf7 {[%clk 0:01:41.7]} 51... R6d7 {[%clk 0:00:36.6]} 52. Qc4 {[%clk
0:01:40.6]} 52... Rd4 {[%clk 0:00:35.6]} 53. Qc7 {[%clk 0:01:35.8]} 53... R4d7
{[%clk 0:00:34.5]} 54. Qe5 {[%clk 0:01:30.7]} 54... Rd5 {[%clk 0:00:33.6]} 55.
Qe7 {[%clk 0:01:30.2]} 55... R5d7 {[%clk 0:00:32.9]} 56. Qh4 {[%clk 0:01:29.8]}
56... Rd4 {[%clk 0:00:29.9]} 57. Kh3 {[%clk 0:01:18.9]} 57... Rd1 {[%clk
0:00:26.3]} 58. Qe7 {[%clk 0:01:17.2]} 58... R1d7 {[%clk 0:00:25.1]} 59. Qe2
{[%clk 0:01:15.4]} 59... Rd2 {[%clk 0:00:23.7]} 60. Qf3 {[%clk 0:01:14.3]} 60...
R2d3 {[%clk 0:00:22.8]} 61. Qg4 {[%clk 0:01:11.6]} 61... R3d7 {[%clk 0:00:21.6]}
62. f5 {[%clk 0:01:07.4]} 62... Rd1 {[%clk 0:00:20.6]} 63. Qf3 {[%clk
0:01:05.7]} 63... R1d3 {[%clk 0:00:19.4]} 64. Qg4 {[%clk 0:01:00.6]} 64... R3d4
{[%clk 0:00:18.1]} 65. Qf3 {[%clk 0:00:59.5]} 65... R4d5 {[%clk 0:00:16.6]} 66.
f6 {[%clk 0:00:57.7]} 66... R5d7 {[%clk 0:00:11.8]} 67. fxg7+ {[%clk 0:00:55.6]}
67... Rxg7 {[%clk 0:00:09.9]} 68. Qf6 {[%clk 0:00:54.8]} 68... Rg8 {[%clk
0:00:07.8]} 69. Qxh6+ {[%clk 0:00:53.8]} 69... Rh7 {[%clk 0:00:06.9]} 70. Qf6+
{[%clk 0:00:53.3]} 70... Rhg7 {[%clk 0:00:05.3]} 71. h6 {[%clk 0:00:52.6]} 1-0

[Event "Live Chess"]
[Site "Chess.com"]
[Date "2023.05.21"]
[Round "-"]
[White "LiamBellwood"]
[Black "wot-not"]
[Result "1-0"]
[WhiteElo "1959"]
[BlackElo "1559"]
[TimeControl "300"]
[EndTime "2:40:13 PDT"]
[Termination "LiamBellwood won by resignation"]

1. d4 {[%clk 0:04:59.4]} 1... Nf6 {[%clk 0:04:58.5]} 2. Nc3 {[%clk 0:04:59.3]}
2... d6 {[%clk 0:04:57.6]} 3. Bf4 {[%clk 0:04:58.9]} 3... Bg4 {[%clk 0:04:56.7]}
4. f3 {[%clk 0:04:54]} 4... Bh5 {[%clk 0:04:54.7]} 5. g4 {[%clk 0:04:53.3]} 5...
Bg6 {[%clk 0:04:53.3]} 6. e3 {[%clk 0:04:51.3]} 6... h5 {[%clk 0:04:52]} 7. g5
{[%clk 0:04:50.1]} 7... Nfd7 {[%clk 0:04:49.9]} 8. h4 {[%clk 0:04:49.5]} 8... e5
{[%clk 0:04:49]} 9. dxe5 {[%clk 0:04:47.4]} 9... dxe5 {[%clk 0:04:47.8]} 10. Bg3
{[%clk 0:04:46.4]} 10... Bb4 {[%clk 0:04:46.7]} 11. Qd2 {[%clk 0:04:39.1]} 11...
O-O {[%clk 0:04:44.9]} 12. O-O-O {[%clk 0:04:34.5]} 12... c6 {[%clk 0:04:42.1]}
13. Bxe5 {[%clk 0:04:17.9]} 13... Qa5 {[%clk 0:04:36.7]} 14. Bd6 {[%clk
0:03:55.9]} 14... Bxc3 {[%clk 0:04:11.7]} 15. Qxc3 {[%clk 0:03:55.8]} 15... Qxc3
{[%clk 0:04:10.5]} 16. bxc3 {[%clk 0:03:53.9]} 16... Nb6 {[%clk 0:04:06.7]} 17.
Bxf8 {[%clk 0:03:52.2]} 17... Kxf8 {[%clk 0:04:04.8]} 18. Bd3 {[%clk 0:03:51.7]}
18... Na6 {[%clk 0:03:59.2]} 19. Bxg6 {[%clk 0:03:50.3]} 19... fxg6 {[%clk
0:03:59]} 20. Nh3 {[%clk 0:03:49.8]} 20... Re8 {[%clk 0:03:56.3]} 21. e4 {[%clk
0:03:47.5]} 21... Nc4 {[%clk 0:03:54.3]} 22. Nf4 {[%clk 0:03:45.3]} 22... b5
{[%clk 0:03:46.1]} 23. Rd7 {[%clk 0:03:39.8]} 23... Nc5 {[%clk 0:03:43.5]} 24.
Nxg6+ {[%clk 0:03:35]} 1-0